[Event "Chinese Team-ch Men 2025"]
[Site "Zhang Jiakou Hebei"]
[Date "2025.04.30"]
[Round "6.11"]
[White "Peng, Hongchi"]
[Black "Zhao, Yuanhe"]
[Result "1/2-1/2"]
[Annotator "ChessBase"]
[ECO "B42"]
[WhiteElo "2419"]
[BlackElo "2482"]
[PlyCount "70"]
[EventDate "2025.04.26"]
[EventType "team-tourn"]
[EventCountry "CHN"]
[SourceTitle "playchess.com"]
[Source "ChessBase"]
[SourceQuality "1"]
[TimeControl "5400+30"]

1. e4 {[%emt 0:00:02]} c5 {[%emt 0:00:37]} 2. Nf3 {[%emt 0:00:05]} a6 {[%emt 0:01:51]} 3. c4 {[%emt 0:00:06]} e6 {[%emt 0:02:37]} 4. d4 {[%emt 0:00:55]} cxd4 {[%emt 0:00:04]} 5. Nxd4 {[%emt 0:00:05]} Qc7 {[%emt 0:00:12]} 6. Bd3 {[%emt 0:01:30]} Nf6 {[%emt 0:01:29]} 7. O-O {[%emt 0:00:25]} Nc6 {[%emt 0:00:04]} 8. Nxc6 {[%emt 0:00:59]} dxc6 {[%emt 0:00:34]} 9. Be3 {[%emt 0:02:45]} e5 {[%emt 0:00:15]} 10. h3 {[%emt 0:00:34]} Be7 {[%emt 0:01:29]} 11. Nc3 {[%emt 0:02:41]} O-O {[%emt 0:01:51]} 12. Na4 {[%emt 0:09:14]} Be6 {[%emt 0:01:13]} 13. Bb6 {[%emt 0:11:40]} Qc8 {[%emt 0:02:55]} 14. c5 {[%emt 0:02:35]} Nd7 {[%emt 0:00:31]} 15. Qe2 {[%emt 0:01:45]} Bd8 {[%emt 0:06:05]} 16. Bxd8 {[%emt 0:11:22]} Rxd8 {[%emt 0:00:08]} 17. Bc4 {[%emt 0:00:13]} Bxc4 {[%emt 0:00:04]} 18. Qxc4 {[%emt 0:00:05]} Qc7 {[%emt 0:00:03]} 19. Rfd1 {[%emt 0:03:34]} Nf8 {[%emt 0:00:07]} 20. Nc3 {[%emt 0:02:27]} Ne6 {[%emt 0:00:06]} 21. Ne2 {[%emt 0:01:46]} Rxd1+ {[%emt 0:02:28]} 22. Rxd1 {[%emt 0:00:00]} Rd8 {[%emt 0:00:06]} 23. Rxd8+ {[%emt 0:10:39]} Qxd8 {[%emt 0:00:09]} 24. Nc3 {[%emt 0:10:21]} Qd2 {[%emt 0:01:27]} 25. Qb4 {[%emt 0:01:00]} Qe1+ {[%emt 0:10:24]} 26. Kh2 {[%emt 0:00:02]} Qxf2 {[%emt 0:00:08]} 27. Qxb7 {[%emt 0:00:06]} h6 {[%emt 0:00:42]} 28. Qxc6 {[%emt 0:01:42]} h5 {[%emt 0:08:36]} 29. Qd6 {[%emt 0:05:33]} Nd4 {[%emt 0:09:22]} 30. Qb8+ {[%emt 0:00:09]} Kh7 {[%emt 0:00:05]} 31. Kh1 {[%emt 0:00:02]} Qf1+ {[%emt 0:11:27]} 32. Kh2 {[%emt 0:00:04]} Qf4+ {[%emt 0:00:03]} 33. Kh1 {[%emt 0:00:12]} Nc2 {[%emt 0:01:52]} 34. Qd6 {[%emt 0:11:27]} Qf1+ {[%emt 0:08:47]} 35. Kh2 {[%emt 0:00:00]} Qf4+ {[%emt 0:00:05]} 1/2-1/2

[Event "Chinese Team-ch Men 2025"]
[Site "Zhang Jiakou Hebei"]
[Date "2025.04.30"]
[Round "6.12"]
[White "Jiang, Qinyu"]
[Black "Zhang, Di"]
[Result "1/2-1/2"]
[Annotator "ChessBase"]
[ECO "B48"]
[WhiteElo "2280"]
[BlackElo "2406"]
[PlyCount "105"]
[EventDate "2025.04.26"]
[EventType "team-tourn"]
[EventCountry "CHN"]
[SourceTitle "playchess.com"]
[Source "ChessBase"]
[SourceQuality "1"]
[TimeControl "5400+30"]

1. e4 {[%emt 0:00:01]} c5 {[%emt 0:00:07]} 2. Nf3 {[%emt 0:00:00]} e6 {[%emt 0:00:08]} 3. d4 {[%emt 0:00:01]} cxd4 {[%emt 0:00:06]} 4. Nxd4 {[%emt 0:00:01]} Nc6 {[%emt 0:00:08]} 5. Nc3 {[%emt 0:00:01]} Qc7 {[%emt 0:00:06]} 6. Be3 {[%emt 0:00:01]} a6 {[%emt 0:00:07]} 7. g4 {[%emt 0:00:01]} b5 {[%emt 0:00:08]} 8. Nxc6 {[%emt 0:00:01]} Qxc6 {[%emt 0:00:07]} 9. Qd2 {[%emt 0:00:01]} b4 {[%emt 0:00:07]} 10. Ne2 {[%emt 0:00:01]} Qxe4 {[%emt 0:00:07]} 11. Rg1 {[%emt 0:00:01]} Qc4 {[%emt 0:00:07]} 12. Ng3 {[%emt 0:00:01]} Qc7 {[%emt 0:00:08]} 13. O-O-O {[%emt 0:00:05]} Nf6 {[%emt 0:00:03]} 14. Nh5 {[%emt 0:00:03]} Bb7 {[%emt 0:00:29]} 15. Bb6 {[%emt 0:05:18]} Qc6 {[%emt 0:13:18]} 16. Bd4 {[%emt 0:05:09]} Nxh5 {[%emt 0:00:44]} 17. gxh5 {[%emt 0:00:02]} Rg8 {[%emt 0:00:01]} 18. Bd3 {[%emt 0:03:53]} g6 {[%emt 0:00:07]} 19. hxg6 {[%emt 0:02:23]} hxg6 {[%emt 0:00:10]} 20. f4 {[%emt 0:00:47]} Bc5 {[%emt 0:10:57]} 21. Be4 {[%emt 0:36:53]} d5 {[%emt 0:02:37]} 22. Bxd5 {[%emt 0:00:15]} Qxd5 {[%emt 0:10:14]} 23. Bxc5 {[%emt 0:00:02]} Qxc5 {[%emt 0:00:13]} 24. Qd7+ {[%emt 0:00:15]} Kf8 {[%emt 0:00:03]} 25. Qxb7 {[%emt 0:00:05]} Kg7 {[%emt 0:00:22]} 26. Qe4 {[%emt 0:03:07]} Rad8 {[%emt 0:04:55]} 27. Qe5+ {[%emt 0:06:56]} Qxe5 {[%emt 0:00:12]} 28. fxe5 {[%emt 0:00:01]} Rxd1+ {[%emt 0:30:34]} 29. Kxd1 {[%emt 0:03:55]} Rd8+ {[%emt 0:00:06]} 30. Kc1 {[%emt 0:00:01]} Rd4 {[%emt 0:04:47]} 31. Re1 {[%emt 0:01:13]} g5 {[%emt 0:00:16]} 32. c3 {[%emt 0:00:08]} bxc3 {[%emt 0:00:29]} 33. bxc3 {[%emt 0:00:01]} Rh4 {[%emt 0:00:02]} 34. Re2 {[%emt 0:00:14]} Kg6 {[%emt 0:00:07]} 35. Kc2 {[%emt 0:00:17]} f5 {[%emt 0:09:42]} 36. exf6 {[%emt 0:04:20]} Kxf6 {[%emt 0:00:02]} 37. Kd3 {[%emt 0:03:54]} e5 {[%emt 0:00:34]} 38. c4 {[%emt 0:00:23]} Kf5 {[%emt 0:03:07]} 39. Kc3 {[%emt 0:07:39]} Rh3+ {[%emt 0:05:35]} 40. Kb4 {[%emt 0:00:06]} e4 {[%emt 0:00:04]} 41. c5 {[%emt 0:00:03]} e3 {[%emt 0:00:59]} 42. c6 {[%emt 0:04:26]} Ke4 {[%emt 0:00:35]} 43. Ka5 {[%emt 0:00:19]} Kd3 {[%emt 0:01:19]} 44. c7 {[%emt 0:00:02]} Rh8 {[%emt 0:00:12]} 45. Rxe3+ {[%emt 0:00:29]} Kxe3 {[%emt 0:00:06]} 46. Kxa6 {[%emt 0:00:02]} Kf3 {[%emt 0:04:23]} 47. a4 {[%emt 0:00:18]} Kg2 {[%emt 0:00:39]} 48. Kb7 {[%emt 0:00:06]} Kxh2 {[%emt 0:00:04]} 49. a5 {[%emt 0:00:10]} g4 {[%emt 0:00:08]} 50. a6 {[%emt 0:00:05]} g3 {[%emt 0:00:06]} 51. a7 {[%emt 0:00:07]} g2 {[%emt 0:00:07]} 52. a8=Q {[%emt 0:00:07]} Rxa8 {[%emt 0:00:08]} 53. Kxa8 {[%emt 0:00:04]} 1/2-1/2

[Event "Chinese Team-ch Men 2025"]
[Site "Zhang Jiakou Hebei"]
[Date "2025.04.30"]
[Round "6.13"]
[White "Xu, Yinglun"]
[Black "Xu, Minghui"]
[Result "1-0"]
[Annotator "ChessBase"]
[ECO "C84"]
[WhiteElo "2522"]
[BlackElo "2459"]
[PlyCount "103"]
[EventDate "2025.04.26"]
[EventType "team-tourn"]
[EventCountry "CHN"]
[SourceTitle "playchess.com"]
[Source "ChessBase"]
[SourceQuality "1"]
[TimeControl "5400+30"]

1. e4 {[%emt 0:00:07]} e5 {[%emt 0:00:54]} 2. Nf3 {[%emt 0:00:11]} Nc6 {[%emt 0:00:05]} 3. Bb5 {[%emt 0:00:21]} Nf6 {[%emt 0:01:37]} 4. d3 {[%emt 0:01:57]} d6 {[%emt 0:01:58]} 5. O-O {[%emt 0:02:48]} Be7 {[%emt 0:05:21]} 6. c3 {[%emt 0:01:56]} O-O {[%emt 0:00:14]} 7. Re1 {[%emt 0:08:46]} a6 {[%emt 0:01:00]} 8. Ba4 {[%emt 0:02:32]} b5 {[%emt 0:00:17]} 9. Bc2 {[%emt 0:01:15]} Re8 {[%emt 0:00:52]} 10. Nbd2 {[%emt 0:03:31]} Bf8 {[%emt 0:01:00]} 11. a4 {[%emt 0:02:22]} Bb7 {[%emt 0:04:21]} 12. b4 {[%emt 0:09:49]} d5 {[%emt 0:10:24]} 13. exd5 {[%emt 0:04:20]} Nxd5 {[%emt 0:00:27]} 14. Ne4 {[%emt 0:00:30]} h6 {[%emt 0:16:18]} 15. Bb3 {[%emt 0:08:45]} Kh8 {[%emt 0:38:48]} 16. Nfg5 {[%emt 0:06:39]} Qd7 {[%emt 0:00:01]} 17. Qh5 {[%emt 0:00:47]} Nd8 {[%emt 0:00:11]} 18. Nf3 {[%emt 0:00:48]} f6 {[%emt 0:05:24]} 19. Bxh6 {[%emt 0:05:43]} Qf7 {[%emt 0:01:14]} 20. Qxf7 {[%emt 0:01:57]} Nxf7 {[%emt 0:00:01]} 21. Bd2 {[%emt 0:00:12]} Red8 {[%emt 0:02:01]} 22. h3 {[%emt 0:06:00]} Kg8 {[%emt 0:00:30]} 23. Nh4 {[%emt 0:05:45]} Nb6 {[%emt 0:00:49]} 24. a5 {[%emt 0:02:00]} Bd5 {[%emt 0:00:40]} 25. Bc2 {[%emt 0:01:15]} Na4 {[%emt 0:03:21]} 26. Ng6 {[%emt 0:04:45]} Nd6 {[%emt 0:02:15]} 27. Ng3 {[%emt 0:04:55]} Bf7 {[%emt 0:01:06]} 28. Nxf8 {[%emt 0:00:06]} Kxf8 {[%emt 0:00:03]} 29. Ne2 {[%emt 0:08:01]} Bg6 {[%emt 0:00:48]} 30. Nc1 {[%emt 0:01:30]} Nb2 {[%emt 0:02:48]} 31. Ra2 {[%emt 0:01:31]} Nxd3 {[%emt 0:00:18]} 32. Bxd3 {[%emt 0:00:08]} Bxd3 {[%emt 0:00:06]} 33. Nxd3 {[%emt 0:00:03]} Nc4 {[%emt 0:00:03]} 34. Nc5 {[%emt 0:00:08]} Nxd2 {[%emt 0:01:28]} 35. Ne6+ {[%emt 0:00:16]} Kf7 {[%emt 0:00:11]} 36. Nxd8+ {[%emt 0:00:31]} Rxd8 {[%emt 0:00:01]} 37. f3 {[%emt 0:02:02]} Nc4 {[%emt 0:00:28]} 38. Raa1 {[%emt 0:00:44]} g5 {[%emt 0:01:21]} 39. Rad1 {[%emt 0:00:27]} Nd6 {[%emt 0:00:05]} 40. Rd5 {[%emt 0:00:09]} Ke6 {[%emt 0:00:25]} 41. Red1 {[%emt 0:00:29]} Rh8 {[%emt 0:00:24]} 42. Rc5 {[%emt 0:00:41]} Kd7 {[%emt 0:00:07]} 43. Kh2 {[%emt 0:00:51]} c6 {[%emt 0:00:24]} 44. c4 {[%emt 0:00:55]} Kc7 {[%emt 0:00:04]} 45. cxb5 {[%emt 0:00:16]} Nxb5 {[%emt 0:00:02]} 46. Rc4 {[%emt 0:00:18]} Nd4 {[%emt 0:00:12]} 47. f4 {[%emt 0:01:10]} gxf4 {[%emt 0:02:37]} 48. Rdxd4 {[%emt 0:00:03]} exd4 {[%emt 0:00:03]} 49. Rxd4 {[%emt 0:00:02]} f3 {[%emt 0:01:16]} 50. g4 {[%emt 0:01:23]} c5 {[%emt 0:00:34]} 51. bxc5 {[%emt 0:00:30]} f2 {[%emt 0:00:31]} 52. Rf4 {[%emt 0:00:07]} 1-0

[Event "Chinese Team-ch Men 2025"]
[Site "Zhang Jiakou Hebei"]
[Date "2025.04.30"]
[Round "6.14"]
[White "Chen, Yuan"]
[Black "Zhao, Chenxi"]
[Result "1/2-1/2"]
[Annotator "ChessBase"]
[ECO "E14"]
[WhiteElo "2286"]
[BlackElo "2453"]
[PlyCount "69"]
[EventDate "2025.04.26"]
[EventType "team-tourn"]
[EventCountry "CHN"]
[SourceTitle "playchess.com"]
[Source "ChessBase"]
[SourceQuality "1"]
[TimeControl "5400+30"]

1. d4 {[%emt 0:00:26]} e6 {[%emt 0:00:09]} 2. c4 {[%emt 0:00:08]} Nf6 {[%emt 0:00:08]} 3. Nf3 {[%emt 0:01:12]} b6 {[%emt 0:00:06]} 4. e3 {[%emt 0:08:59]} Bb7 {[%emt 0:00:06]} 5. Bd3 {[%emt 0:00:04]} Be7 {[%emt 0:00:19]} 6. O-O {[%emt 0:00:53]} O-O {[%emt 0:00:06]} 7. Nbd2 {[%emt 0:00:10]} d5 {[%emt 0:01:06]} 8. cxd5 {[%emt 0:04:05]} exd5 {[%emt 0:00:11]} 9. Ne5 {[%emt 0:00:09]} a6 {[%emt 0:03:47]} 10. Qf3 {[%emt 0:01:47]} c5 {[%emt 0:00:50]} 11. Qh3 {[%emt 0:01:08]} c4 {[%emt 0:01:04]} 12. Bc2 {[%emt 0:00:27]} Bc8 {[%emt 0:02:44]} 13. Qf3 {[%emt 0:25:36]} Ra7 {[%emt 0:00:16]} 14. Re1 {[%emt 0:10:16]} Be6 {[%emt 0:03:19]} 15. Nf1 {[%emt 0:03:26]} Nfd7 {[%emt 0:03:23]} 16. Nxd7 {[%emt 0:03:55]} Rxd7 {[%emt 0:01:14]} 17. Ng3 {[%emt 0:00:47]} b5 {[%emt 0:02:30]} 18. Bd2 {[%emt 0:05:23]} g6 {[%emt 0:02:55]} 19. a3 {[%emt 0:00:58]} Nc6 {[%emt 0:01:32]} 20. Ne2 {[%emt 0:00:20]} f5 {[%emt 0:01:28]} 21. Nf4 {[%emt 0:06:15]} Bf7 {[%emt 0:00:10]} 22. Qh3 {[%emt 0:00:15]} Bd6 {[%emt 0:03:45]} 23. g3 {[%emt 0:01:26]} Qc7 {[%emt 0:00:33]} 24. Qh6 {[%emt 0:00:41]} Rb8 {[%emt 0:03:54]} 25. Nh5 {[%emt 0:14:03]} gxh5 {[%emt 0:00:23]} 26. Bxf5 {[%emt 0:00:05]} Be8 {[%emt 0:04:39]} 27. Be6+ {[%emt 0:00:23]} Kh8 {[%emt 0:02:00]} 28. Bxd7 {[%emt 0:01:13]} Qxd7 {[%emt 0:05:29]} 29. Qf6+ {[%emt 0:00:05]} Kg8 {[%emt 0:00:07]} 30. Qg5+ {[%emt 0:00:04]} Kh8 {[%emt 0:01:11]} 31. Qf6+ {[%emt 0:04:26]} Kg8 {[%emt 0:00:02]} 32. Qg5+ {[%emt 0:00:06]} Kh8 {[%emt 0:02:04]} 33. Qf6+ {[%emt 0:03:18]} Kg8 {[%emt 0:00:04]} 34. Qg5+ {[%emt 0:00:05]} Kh8 {[%emt 0:00:17]} 35. Qf6+ {[%emt 0:01:15]} 1/2-1/2

[Event "Chinese Team-ch Men 2025"]
[Site "Zhang Jiakou Hebei"]
[Date "2025.04.30"]
[Round "6.15"]
[White "Wu, Yixing"]
[Black "Chen, Zhi"]
[Result "1-0"]
[Annotator "ChessBase"]
[ECO "A11"]
[WhiteElo "2406"]
[BlackElo "2094"]
[PlyCount "75"]
[EventDate "2025.04.26"]
[EventType "team-tourn"]
[EventCountry "CHN"]
[SourceTitle "playchess.com"]
[Source "ChessBase"]
[SourceQuality "1"]
[TimeControl "5400+30"]

1. Nf3 {[%emt 0:00:03]} d5 {[%emt 0:00:40]} 2. g3 {[%emt 0:00:05]} Nf6 {[%emt 0:00:42]} 3. Bg2 {[%emt 0:00:09]} c6 {[%emt 0:01:35]} 4. c4 {[%emt 0:00:28]} g6 {[%emt 0:02:35]} 5. b3 {[%emt 0:00:05]} Bg7 {[%emt 0:00:52]} 6. Bb2 {[%emt 0:00:05]} O-O {[%emt 0:02:14]} 7. O-O {[%emt 0:00:30]} Bf5 {[%emt 0:00:22]} 8. d3 {[%emt 0:00:47]} Re8 {[%emt 0:06:04]} 9. Qc2 {[%emt 0:04:03]} Nbd7 {[%emt 0:15:48]} 10. Nd4 {[%emt 0:04:19]} e5 {[%emt 0:06:06]} 11. Nxf5 {[%emt 0:00:23]} gxf5 {[%emt 0:00:04]} 12. cxd5 {[%emt 0:24:28]} cxd5 {[%emt 0:03:09]} 13. Qd2 {[%emt 0:01:12]} Qb6 {[%emt 0:21:30]} 14. Nc3 {[%emt 0:06:03]} d4 {[%emt 0:06:22]} 15. Nb1 {[%emt 0:11:43]} f4 {[%emt 0:07:47]} 16. Na3 {[%emt 0:08:58]} Bh6 {[%emt 0:07:34]} 17. Nc4 {[%emt 0:00:25]} Qe6 {[%emt 0:00:53]} 18. Qb4 {[%emt 0:01:08]} Rab8 {[%emt 0:01:12]} 19. Nd2 {[%emt 0:10:19]} Rec8 {[%emt 0:03:35]} 20. Rac1 {[%emt 0:02:14]} fxg3 {[%emt 0:00:50]} 21. hxg3 {[%emt 0:00:31]} Rxc1 {[%emt 0:03:32]} 22. Rxc1 {[%emt 0:00:47]} Nb6 {[%emt 0:03:37]} 23. Rc2 {[%emt 0:01:09]} Nbd5 {[%emt 0:01:03]} 24. Qa5 {[%emt 0:02:32]} a6 {[%emt 0:03:47]} 25. Ne4 {[%emt 0:01:02]} Ne3 {[%emt 0:00:26]} 26. Nxf6+ {[%emt 0:03:45]} Qxf6 {[%emt 0:00:03]} 27. fxe3 {[%emt 0:00:17]} Bxe3+ {[%emt 0:00:08]} 28. Kh2 {[%emt 0:00:02]} Bf2 {[%emt 0:00:12]} 29. Bc1 {[%emt 0:06:37]} h5 {[%emt 0:01:10]} 30. Qd5 {[%emt 0:01:50]} h4 {[%emt 0:00:20]} 31. g4 {[%emt 0:02:41]} Bg3+ {[%emt 0:00:47]} 32. Kh1 {[%emt 0:00:01]} h3 {[%emt 0:00:52]} 33. Bxh3 {[%emt 0:01:01]} Qh4 {[%emt 0:00:20]} 34. Kg2 {[%emt 0:00:36]} Bf4 {[%emt 0:00:42]} 35. Qf3 {[%emt 0:01:03]} Re8 {[%emt 0:00:14]} 36. Bxf4 {[%emt 0:02:06]} exf4 {[%emt 0:00:04]} 37. Qxf4 {[%emt 0:00:13]} Re3 {[%emt 0:00:14]} 38. Rc8+ {[%emt 0:00:12]} 1-0

[Event "Chinese Team-ch Men 2025"]
[Site "Zhang Jiakou Hebei"]
[Date "2025.04.30"]
[Round "6.16"]
[White "Gao, Kai"]
[Black "Ren, Yibai"]
[Result "0-1"]
[Annotator "NA"]
[ECO "B41"]
[WhiteElo "1894"]
[BlackElo "2027"]
[PlyCount "84"]
[EventDate "2025.04.26"]
[EventType "team-tourn"]
[EventCountry "CHN"]
[SourceTitle "playchess.com"]
[Source "ChessBase"]
[SourceQuality "1"]
[TimeControl "5400+30"]

1. e4 {[%emt 0:00:11]} c5 {[%emt 0:00:27]} 2. Nf3 {[%emt 0:00:16]} a6 {[%emt 0:01:19]} 3. c4 {[%emt 0:00:21]} e6 {[%emt 0:00:19]} 4. d4 {[%emt 0:00:22]} cxd4 {[%emt 0:00:29]} 5. Nxd4 {[%emt 0:00:09]} Nf6 {[%emt 0:00:05]} 6. Bd3 {[%emt 0:01:50]} Nc6 {[%emt 0:01:08]} 7. Nc2 {[%emt 0:04:34]} Be7 {[%emt 0:02:46]} 8. O-O {[%emt 0:01:19]} Qc7 {[%emt 0:01:37]} 9. Nc3 {[%emt 0:12:56]} Ne5 {[%emt 0:03:10]} 10. Ne3 {[%emt 0:07:46]} Nxd3 {[%emt 0:01:20]} 11. Qxd3 {[%emt 0:00:02]} b6 {[%emt 0:01:28]} 12. b3 {[%emt 0:05:03]} Bb7 {[%emt 0:01:05]} 13. Rd1 {[%emt 0:02:46]} O-O {[%emt 0:03:46]} 14. Bb2 {[%emt 0:05:01]} Rfd8 {[%emt 0:06:44]} 15. f3 {[%emt 0:04:02]} h5 {[%emt 0:07:43]} 16. Rac1 {[%emt 0:10:15]} h4 {[%emt 0:07:17]} 17. h3 {[%emt 0:10:49]} Qf4 {[%emt 0:09:46]} 18. Ne2 {[%emt 0:01:59]} Qh6 {[%emt 0:05:34]} 19. Bd4 {[%emt 0:02:05]} b5 {[%emt 0:06:23]} 20. e5 {[%emt 0:05:18]} bxc4 {[%emt 0:07:13]} 21. bxc4 {[%emt 0:00:11]} Nh5 {[%emt 0:01:08]} 22. Ng4 {[%emt 0:07:48]} Qg5 {[%emt 0:02:52]} 23. Be3 {[%emt 0:05:50]} Qf5 {[%emt 0:00:12]} 24. Bb6 {[%emt 0:00:14]} Rdb8 {[%emt 0:01:27]} 25. Qxd7 {[%emt 0:02:37]} Bg5 {[%emt 0:07:36]} 26. Rc3 {[%emt 0:03:36]} Bf4 {[%emt 0:04:56]} 27. Bc7 {[%emt 0:03:30]} Rc8 {[%emt 0:00:36]} 28. Rb3 {[%emt 0:00:10]} Qc2 {[%emt 0:01:32]} 29. Nxf4 {[%emt 0:00:51]} Nxf4 {[%emt 0:00:09]} 30. Ne3 {[%emt 0:00:04]} Qe2 {[%emt 0:01:33]} 31. Rd2 {[%emt 0:03:17]} Rxc7 {[%emt 0:01:49]} 32. Qxc7 {[%emt 0:00:06]} Qxd2 {[%emt 0:00:12]} 33. Qxb7 {[%emt 0:00:09]} Qe1+ {[%emt 0:00:36]} 34. Nf1 {[%emt 0:00:50]} Rd8 {[%emt 0:02:42]} 35. Rb1 {[%emt 0:00:46]} Ne2+ {[%emt 0:01:00]} 36. Kh2 {[%emt 0:00:11]} Qf2 {[%emt 0:01:08]} 37. Qb6 {[%emt 0:00:16]} Rd4 {[%emt 0:00:04]} 38. Nd2 {[%emt 0:00:54]} Nf4 {[%emt 0:00:31]} 39. Rg1 {[%emt 0:00:18]} Rxd2 {[%emt 0:00:06]} 40. Qb8+ {[%emt 0:00:29]} Kh7 {[%emt 0:00:02]} 41. Qb1+ {[%emt 0:00:12]} g6 {[%emt 0:00:12]} 42. Qb7 {[%emt 0:00:24]} Kg7 {[%emt 0:00:22]} 0-1

[Event "Chinese Team-ch Men 2025"]
[Site "Zhang Jiakou Hebei"]
[Date "2025.04.30"]
[Round "6.17"]
[White "Cao, Qingfeng"]
[Black "Wang, Yiye"]
[Result "1/2-1/2"]
[Annotator "ChessBase"]
[ECO "E05"]
[WhiteElo "2443"]
[BlackElo "2446"]
[PlyCount "86"]
[EventDate "2025.04.26"]
[EventType "team-tourn"]
[EventCountry "CHN"]
[SourceTitle "playchess.com"]
[Source "ChessBase"]
[SourceQuality "1"]
[TimeControl "5400+30"]

1. d4 {[%emt 0:00:03]} Nf6 {[%emt 0:00:26]} 2. c4 {[%emt 0:00:10]} e6 {[%emt 0:00:54]} 3. Nf3 {[%emt 0:00:12]} d5 {[%emt 0:03:32]} 4. g3 {[%emt 0:00:46]} Be7 {[%emt 0:02:26]} 5. Bg2 {[%emt 0:00:30]} O-O {[%emt 0:00:17]} 6. O-O {[%emt 0:02:34]} dxc4 {[%emt 0:00:53]} 7. Qc2 {[%emt 0:00:23]} a6 {[%emt 0:01:03]} 8. Qxc4 {[%emt 0:04:55]} b5 {[%emt 0:00:15]} 9. Qc2 {[%emt 0:00:08]} Bb7 {[%emt 0:00:09]} 10. Bd2 {[%emt 0:00:23]} Ra7 {[%emt 0:13:54]} 11. Rc1 {[%emt 0:07:47]} Be4 {[%emt 0:00:18]} 12. Qb3 {[%emt 0:00:47]} Nc6 {[%emt 0:01:17]} 13. e3 {[%emt 0:02:46]} Qa8 {[%emt 0:00:24]} 14. Qd1 {[%emt 0:01:07]} b4 {[%emt 0:02:06]} 15. Be1 {[%emt 0:00:23]} Bd5 {[%emt 0:22:01]} 16. Nbd2 {[%emt 0:07:20]} Nb8 {[%emt 0:06:02]} 17. Rc2 {[%emt 0:31:38]} Nbd7 {[%emt 0:05:36]} 18. Rac1 {[%emt 0:00:20]} Rc8 {[%emt 0:00:08]} 19. Nh4 {[%emt 0:01:30]} c5 {[%emt 0:11:44]} 20. Bxd5 {[%emt 0:02:47]} Nxd5 {[%emt 0:03:40]} 21. Nb3 {[%emt 0:00:50]} a5 {[%emt 0:04:15]} 22. e4 {[%emt 0:06:46]} N5f6 {[%emt 0:02:23]} 23. f3 {[%emt 0:00:16]} Rac7 {[%emt 0:06:07]} 24. Qe2 {[%emt 0:02:48]} a4 {[%emt 0:02:53]} 25. Nxc5 {[%emt 0:02:15]} Nxc5 {[%emt 0:00:18]} 26. dxc5 {[%emt 0:00:27]} Rxc5 {[%emt 0:02:20]} 27. Ng2 {[%emt 0:02:45]} Nd7 {[%emt 0:01:34]} 28. Bf2 {[%emt 0:10:36]} Rxc2 {[%emt 0:00:13]} 29. Rxc2 {[%emt 0:00:01]} Ne5 {[%emt 0:04:13]} 30. Ne1 {[%emt 0:00:14]} h6 {[%emt 0:02:34]} 31. Kg2 {[%emt 0:00:12]} Rxc2 {[%emt 0:01:21]} 32. Qxc2 {[%emt 0:02:22]} Qa6 {[%emt 0:00:06]} 33. b3 {[%emt 0:01:52]} axb3 {[%emt 0:00:17]} 34. axb3 {[%emt 0:00:16]} Qc6 {[%emt 0:01:08]} 35. Qd2 {[%emt 0:02:03]} Qb5 {[%emt 0:00:29]} 36. Bd4 {[%emt 0:00:42]} Nc6 {[%emt 0:00:28]} 37. Be3 {[%emt 0:00:16]} Bf6 {[%emt 0:00:44]} 38. Qd3 {[%emt 0:01:40]} Qe5 {[%emt 0:00:31]} 39. Bf2 {[%emt 0:03:38]} Qb2 {[%emt 0:00:16]} 40. Qc2 {[%emt 0:01:33]} Qxc2 {[%emt 0:00:36]} 41. Nxc2 {[%emt 0:00:02]} Na5 {[%emt 0:00:06]} 42. Nxb4 {[%emt 0:00:04]} Nxb3 {[%emt 0:00:04]} 43. Nc6 {[%emt 0:00:18]} Bc3 {[%emt 0:00:13]} 1/2-1/2

[Event "Chinese Team-ch Men 2025"]
[Site "Zhang Jiakou Hebei"]
[Date "2025.04.30"]
[Round "6.18"]
[White "Hou, Yifan b"]
[Black "Dong, Hongfu"]
[Result "1/2-1/2"]
[Annotator "ChessBase"]
[ECO "E11"]
[WhiteElo "2313"]
[BlackElo "2238"]
[PlyCount "107"]
[EventDate "2025.04.26"]
[EventType "team-tourn"]
[EventCountry "CHN"]
[SourceTitle "playchess.com"]
[Source "ChessBase"]
[SourceQuality "1"]
[TimeControl "5400+30"]

1. d4 {[%emt 0:00:04]} Nf6 {[%emt 0:00:08]} 2. c4 {[%emt 0:00:12]} e6 {[%emt 0:00:08]} 3. Nf3 {[%emt 0:00:11]} d5 {[%emt 0:02:32]} 4. g3 {[%emt 0:00:38]} Bb4+ {[%emt 0:01:07]} 5. Bd2 {[%emt 0:01:06]} a5 {[%emt 0:01:23]} 6. Bg2 {[%emt 0:00:56]} O-O {[%emt 0:02:27]} 7. Qc2 {[%emt 0:00:27]} Bd6 {[%emt 0:01:30]} 8. O-O {[%emt 0:03:00]} c6 {[%emt 0:00:36]} 9. Bg5 {[%emt 0:12:05]} Nbd7 {[%emt 0:02:42]} 10. Nbd2 {[%emt 0:01:18]} h6 {[%emt 0:06:27]} 11. Bxf6 {[%emt 0:00:50]} Nxf6 {[%emt 0:00:08]} 12. e4 {[%emt 0:00:08]} Be7 {[%emt 0:00:31]} 13. Rfd1 {[%emt 0:03:45]} b6 {[%emt 0:10:39]} 14. Rac1 {[%emt 0:05:11]} Bb7 {[%emt 0:01:08]} 15. Ne5 {[%emt 0:02:05]} Rc8 {[%emt 0:07:57]} 16. a3 {[%emt 0:02:42]} c5 {[%emt 0:08:03]} 17. exd5 {[%emt 0:13:02]} exd5 {[%emt 0:00:29]} 18. dxc5 {[%emt 0:02:35]} Bxc5 {[%emt 0:10:15]} 19. Qf5 {[%emt 0:04:34]} Bd6 {[%emt 0:00:37]} 20. Nd3 {[%emt 0:20:50]} Rc7 {[%emt 0:02:59]} 21. Ne1 {[%emt 0:04:00]} Qc8 {[%emt 0:03:46]} 22. Qxc8 {[%emt 0:02:16]} Rfxc8 {[%emt 0:00:06]} 23. Bh3 {[%emt 0:00:08]} Re8 {[%emt 0:02:06]} 24. cxd5 {[%emt 0:01:17]} Rxc1 {[%emt 0:00:13]} 25. Rxc1 {[%emt 0:00:02]} Bxd5 {[%emt 0:00:33]} 26. Nd3 {[%emt 0:01:31]} b5 {[%emt 0:04:11]} 27. Bg2 {[%emt 0:02:19]} Be6 {[%emt 0:02:45]} 28. Bc6 {[%emt 0:02:47]} Rb8 {[%emt 0:00:15]} 29. Nc5 {[%emt 0:01:48]} Bh3 {[%emt 0:01:34]} 30. Ncb3 {[%emt 0:02:37]} Be5 {[%emt 0:05:21]} 31. Nxa5 {[%emt 0:03:22]} Bxb2 {[%emt 0:00:16]} 32. Rb1 {[%emt 0:00:09]} Bc3 {[%emt 0:00:18]} 33. Nab3 {[%emt 0:00:59]} Rb6 {[%emt 0:03:33]} 34. Bf3 {[%emt 0:02:22]} Ra6 {[%emt 0:01:56]} 35. Be2 {[%emt 0:00:21]} Rxa3 {[%emt 0:00:32]} 36. Bxb5 {[%emt 0:00:14]} Ra2 {[%emt 0:00:10]} 37. Rd1 {[%emt 0:04:22]} Bg4 {[%emt 0:00:32]} 38. f3 {[%emt 0:00:05]} Bf5 {[%emt 0:00:12]} 39. Nf1 {[%emt 0:01:16]} Be6 {[%emt 0:06:42]} 40. Nbd2 {[%emt 0:01:53]} Bd5 {[%emt 0:03:02]} 41. Bc4 {[%emt 0:00:37]} Ra5 {[%emt 0:01:50]} 42. Bxd5 {[%emt 0:00:24]} Rxd5 {[%emt 0:00:06]} 43. Kf2 {[%emt 0:00:05]} h5 {[%emt 0:00:10]} 44. Ke2 {[%emt 0:00:12]} Re5+ {[%emt 0:00:04]} 45. Kd3 {[%emt 0:00:08]} Bb4 {[%emt 0:00:53]} 46. Rc1 {[%emt 0:00:59]} h4 {[%emt 0:00:29]} 47. Rc8+ {[%emt 0:00:31]} Kh7 {[%emt 0:00:08]} 48. Rc4 {[%emt 0:00:26]} hxg3 {[%emt 0:00:13]} 49. hxg3 {[%emt 0:00:07]} Rd5+ {[%emt 0:00:57]} 50. Ke2 {[%emt 0:00:07]} Bxd2 {[%emt 0:00:23]} 51. Nxd2 {[%emt 0:00:06]} Re5+ {[%emt 0:00:04]} 52. Kf2 {[%emt 0:00:11]} Rd5 {[%emt 0:00:05]} 53. Ke2 {[%emt 0:00:05]} Re5+ {[%emt 0:00:04]} 54. Kf2 {[%emt 0:00:48]} 1/2-1/2